Cogmind - Beta 17 @@@ ROGUE MODE // 2026.08.18 @ 05:24:05 Player: MrFartsburg Result: Destroyed by Y-45 Defender with Beam Rifle Performance ------------- Evolutions (2) 1000 Regions Visited (6) 1200 Robots Destroyed (35) 175 Value Destroyed (843) 843 Prototype IDs (7) 140 Alien Tech Used (0) 0 Bonus (200) 200 TOTAL SCORE: 3558 Bonus ------- Entered Garrisons 200 Cogmind --------- Core Integrity 0/550 Matter 268/300 Energy 99/100 System Corruption 3% Temperature Cool (9) Movement Core (50) Location -8/Garrison Parts ------- > --- POWER (2) -------- (None) > --- PROPULSION (2) --- (None) > --- UTILITY (3) ------ Weight Redist. System (fused) Structural Scanner > --- WEAPON (4) ------- (None) > --- INVENTORY (5) ---- (None) Peak State ------------ > --- POWER ------------ Heavy Ion Engine > --- PROPULSION ------- Carbon-fiber Leg Carbon-fiber Leg > --- UTILITY ---------- Medium Storage Unit Visual Processing Unit Hardened Light Armor Plating > --- WEAPON ----------- Advanced Beam Rifle Heavy Assault Rifle Autogun Shotgun > --- INVENTORY -------- Weight Redist. System Structural Scanner ECM Suite Improved Propulsion Shielding Shield Generator Grenade Launcher [Rating: 25] Favorites ----------- Power Ion Engine Engine Ion Engine Power Core Light Nuclear Core Propulsion Light Treads Treads Light Treads Leg Carbon-fiber Leg Utility Medium Storage Unit Device Structural Scanner Storage Medium Storage Unit Processor Visual Processing Unit Protection Light Armor Plating Weapon Assault Rifle Energy Gun Advanced Beam Rifle Energy Cannon Particle Cannon Ballistic Gun Assault Rifle Launcher Grenade Launcher Build | -11 -10 -9 -9 -8 -8 -8 ------- Run | Yrd Mat Mat Min Mat Sto Gar Slots Evolved 4 | . . 2 . 2 . . Power 1 | . . 1 . . . . Propulsion . | . . . . . . . Utility 1 | . . . . 1 . . Weapon 2 | . . 1 . 1 . . Parts Attached 34 | 6 3 11 3 9 2 . Power 6 | 1 1 3 1 . . . Engine 5 | 1 1 2 1 . . . Core 1 | . . 1 . . . . Reactor . | . . . . . . . Propulsion 5 | 2 . 1 . 2 . . Treads 3 | 2 . 1 . . . . Leg 2 | . . . . 2 . . Wheel . | . . . . . . . Hover . | . . . . . . . Flight . | . . . . . . . Utility 11 | 1 2 2 . 4 2 . Device 5 | . 2 . . 1 2 . Storage 2 | 1 . 1 . . . . Processor 1 | . . 1 . . . . Hackware . | . . . . . . . Protection 3 | . . . . 3 . . Artifact . | . . . . . . . Weapon 12 | 2 . 5 2 3 . . Energy Gun 2 | . . 1 . 1 . . Energy Cannon 1 | . . 1 . . . . Ballistic Gun 8 | 2 . 2 2 2 . . Ballistic Cannon . | . . . . . . . Launcher 1 | . . 1 . . . . Special Weapon . | . . . . . . . Impact Weapon . | . . . . . . . Slashing Weapon . | . . . . . . . Piercing Weapon . | . . . . . . . Special Melee Weapon . | . . . . . . . Unidentified Prototypes 4 | . . 2 1 1 . . Parts Lost 27 | . 2 2 5 18 . . Power 5 | . 1 . 2 2 . . Propulsion 4 | . . 1 1 2 . . Utility 7 | . 1 . . 6 . . Weapon 11 | . . 1 2 8 . . Highest Loss Streak 13 | . 1 1 2 13 . . To Critical Strikes 1 | . . . . 1 . . Average Backups 6 | 1 3 7 8 5 . . Power . | . 1 1 1 . . . Propulsion . | . . . . . . . Utility 2 | . . 2 3 4 . . Weapon 2 | . 1 3 3 1 . . Tool/Special . | . . . . . . . Unused Backups 2 | . 1 1 . . . . Power . | . . . . . . . Propulsion . | . . . . . . . Utility 1 | . 1 . . . . . Weapon 1 | . . 1 . . . . Tool/Special . | . . . . . . . Average Slot Usage (%) 81 | . 95 99 72 81 24 24 Engine 12 | . 10 16 11 11 . . Core 4 | . . 5 9 . . . Treads 14 | . 28 22 11 5 . . Leg 1 | . . . . 6 . . Device 5 | . 12 7 . . 24 24 Storage 10 | . 14 11 11 9 . . Processor 6 | . . 3 11 8 . . Protection 1 | . . . . 7 . . Energy Cannon 2 | . . 8 . . . . Ballistic Gun 21 | . 28 23 17 25 . . Peak Build Rating 25 | 6 7 18 15 25 5 5 Average Rating 12 | 4 6 12 12 18 4 4 On Entrance 6 | . 6 7 15 14 . 5 Avg Prop Armor Cover (%) . | . . . . . . . Naked Turns 2 | . . . . 2 . . Heaviest Build 34 | 14 15 29 28 34 3 3 Greatest Support 40 | 40 40 40 40 30 9 9 Greatest Overweight (x) 1 | . . . 1 1 . . Average Overweight (x) . | . . . . . . . Largest Inventory Capacity 10 | 8 8 10 10 10 5 5 Average Capacity 9 | 7 8 8 10 9 5 5 Most Carried 10 | 2 4 10 10 7 2 . Average Carried 6 | 1 3 7 8 5 . . Final Capacity 10 | 8 8 10 10 5 5 5 Final Carried 7 | 2 4 7 7 3 . . Class Distribution -------------------- 47% | Mutant 33% | Skirmisher 13% | Tank 5% | Scavenger-Tank Dominant Class ---------------- Mutant | -10/Materials Skirmisher | -9/Materials Mutant | -9/Mines Tank | -8/Materials Mutant | -8/Storage Mutant | -8/Garrison Resources | -11 -10 -9 -9 -8 -8 -8 ----------- Run | Yrd Mat Mat Min Mat Sto Gar Matter Collected 950 | 191 138 247 180 194 . . Remotely . | . . . . . . . Salvage Created 1115 | . 138 546 200 231 . . Parts 71 | . 7 27 25 12 . . Haulers Intercepted 1 | . . 1 . . . . Recyclers Shooed 1 | . . 1 . . . . Parts Field Recycled . | . . . . . . . Retrieved Matter . | . . . . . . . Parts Self-Destructed . | . . . . . . . Prevented . | . . . . . . . Parts Restored . | . . . . . . . Kills | -11 -10 -9 -9 -8 -8 -8 ------- Run | Yrd Mat Mat Min Mat Sto Gar Combat Hostiles Destroyed 28 | . 3 9 12 4 . . Guns 24 | . 3 6 11 4 . . Cannons 3 | . . 3 . . . . AOE 1 | . . . 1 . . . Classes Destroyed 8 | . 2 4 1 1 . . Worker 1 | . . . . 1 . . Builder 1 | . 1 . . . . . Hauler 1 | . . 1 . . . . Recycler 2 | . . 1 1 . . . Watcher 2 | . . 1 . 1 . . Swarmer 12 | . . . 12 . . . Grunt 13 | . 3 7 . 3 . . Sentry 3 | . . 2 . 1 . . Best Kill Streak 8 | . 2 3 8 2 . . Combat Bots Only 7 | . 2 2 7 2 . . Max Kills in Single Turn 2 | . 2 2 2 1 . . Gunslinging 1 | . . . 1 . . . Exploded 1 | . . . 1 . . . Melee . | . . . . . . . Uniques/NPCs Destroyed . | . . . . . . . Combat | -11 -10 -9 -9 -8 -8 -8 -------- Run | Yrd Mat Mat Min Mat Sto Gar Hostile Shots Fired 302 | . 18 63 59 146 . 16 Missed 85 | . 4 17 19 38 . 7 Hits 217 | . 14 46 40 108 . 9 Melee 4 | . . . . 4 . . Projectile 213 | . 14 46 40 104 . 9 Critical Strikes 12 | . . 1 . 11 . . Damage Taken 3330 | . 302 597 307 1986 4 134 Core 696 | . 43 66 29 457 . 101 Absorbed by Shields . | . . . . . . . Redirected to Shielding 102 | . . . . 102 . . Core Remaining (%) 86 | 100 82 . 76 . . . Volleys Fired 82 | . 13 29 16 24 . . Largest 4 | . 2 3 3 4 . . Hottest 111 | . 40 111 73 91 . . Shots Fired 213 | . 26 87 41 59 . . Gun 187 | . 26 63 40 58 . . Cannon 23 | . . 23 . . . . Launcher 3 | . . 1 1 1 . . Special . | . . . . . . . Kinetic 186 | . 26 63 40 57 . . Thermal 24 | . . 23 . 1 . . Explosive 3 | . . 1 1 1 . . Electromagnetic . | . . . . . . . Robot Hit Streak 13 | . 4 13 6 10 . . Robot Miss Streak 7 | . 3 2 7 6 . . Penetration Max . | . . . . . . . Secondary Targets 5 | . . . 4 1 . . Max Gunslinging Chain 1 | . . . 1 1 . . Shots Hit Robots 135 | . 14 60 19 42 . . Core Hits 64 | . 5 24 12 23 . . Critical Kills . | . . . . . . . Critical Parts Destroyed . | . . . . . . . Critical Strikes . | . . . . . . . Melee Attacks . | . . . . . . . Impact . | . . . . . . . Slashing . | . . . . . . . Piercing . | . . . . . . . Sneak Attacks . | . . . . . . . Combat Hostiles . | . . . . . . . Follow-up Attacks . | . . . . . . . Damage Inflicted 2143 | . 202 859 364 710 8 . Guns 1534 | . 194 487 265 588 . . Cannons 329 | . . 329 . . . . Explosions 217 | . . 30 93 94 . . Melee . | . . . . . . . Ramming 63 | . 8 13 6 28 8 . Kinetic 1514 | . 194 487 265 568 . . Thermal 349 | . . 329 . 20 . . Explosive 217 | . . 30 93 94 . . Electromagnetic . | . . . . . . . Impact . | . . . . . . . Slashing . | . . . . . . . Piercing . | . . . . . . . Highest Corruption 3 | . 1 . . 3 3 3 Average Corruption 1 | . 1 . . 3 3 3 Corruption Purged . | . . . . . . . Corruption Blocked . | . . . . . . . Effects 4 | . 1 . . . 2 1 Message Errors 1 | . . . . . 1 . Matter Fused 1 | . 1 . . . . . Parts Rejected 1 | . . . . . . 1 Parts Fused 1 | . . . . . 1 . Overload Shots . | . . . . . . . Overflow Damage 26 | . . 1 25 . . . Projectiles 1 | . . 1 . . . . Explosions 25 | . . . 25 . . . Melee . | . . . . . . . Knockbacks . | . . . . . . . Impact . | . . . . . . . Kinetic . | . . . . . . . Secondary . | . . . . . . . Self-Inflicted Damage 4 | . . . . . 4 . Shots . | . . . . . . . Rammed 8 | . 1 2 2 2 1 . Targets Rammed 15 | . 2 2 2 8 1 . Kicked 6 | . . . . 6 . . Crushed 1 | . 1 . . . . . Highest Temperature 313 | . 5 313 60 300 . . Average Temperature 106 | . 5 116 21 119 . . Received Heat Transfer 1302 | . 84 309 . 873 . 36 Effects 3 | . . 3 . . . . Energy Bleed 2 | . . 2 . . . . Short Circuit 1 | . . 1 . . . . Siege Activations . | . . . . . . . Martial Activations . | . . . . . . . Shielding Activations . | . . . . . . . Robots Disrupted . | . . . . . . . Combat Hostiles . | . . . . . . . Robots Corrupted . | . . . . . . . Combat Hostiles . | . . . . . . . Parts Fried . | . . . . . . . Impact Corruptions . | . . . . . . . Robots Melted . | . . . . . . . Combat Hostiles . | . . . . . . . Parts Melted . | . . . . . . . Heat Transferred 629 | . . 592 . 37 . . Parts Sabotaged . | . . . . . . . Parts Stolen . | . . . . . . . Parts Stripped . | . . . . . . . Power Chain Reactions . | . . . . . . . Alert | -11 -10 -9 -9 -8 -8 -8 ------- Run | Yrd Mat Mat Min Mat Sto Gar Maximum Alert Level . | . . . . . . . Low Security (%) 100 | 100 100 100 100 100 100 100 Level 1 . | . . . . . . . Level 2 . | . . . . . . . Level 3 . | . . . . . . . Level 4 . | . . . . . . . Level 5 . | . . . . . . . High Security . | . . . . . . . Max Security . | . . . . . . . Peak Influence 141 | . 50 98 141 51 . 2 Initial 51 | . . 12 37 51 . 2 Average 30 | . 11 43 43 15 . 2 Influence Increases 870 | . 94 317 325 130 4 . Destroy 0b10 Robot/C 560 | . 60 180 240 80 . . Destroy 0b10 Robot/NC 35 | . 5 15 5 10 . . Destroy Leader 116 | . 10 44 40 22 . . Successful Hack 45 | . 19 9 . 13 4 . Disable Machine 30 | . . 15 15 . . . Destroy Structure 24 | . . 9 10 5 . . Lose Combat Pursuer 60 | . . 45 15 . . . Influence Decreases 868 | . 64 249 290 263 . 2 Entered New Map 163 | . . 18 61 82 . 2 Time Decay 604 | . 54 211 199 140 . . Lost Part 101 | . 10 20 30 41 . . Squads Dispatched 7 | . 1 2 . 4 . . Investigation 3 | . 1 . . 2 . . Extermination . | . . . . . . . Reinforcement 4 | . . 2 . 2 . . Assault . | . . . . . . . Garrison . | . . . . . . . Intercept . | . . . . . . . Searches Triggered . | . . . . . . . Construction Impeded 1 | . . 1 . . . . Haulers Reinforced . | . . . . . . . Active Scanning Responses . | . . . . . . . Cargo Convoy Interrupts . | . . . . . . . Stealth | -11 -10 -9 -9 -8 -8 -8 --------- Run | Yrd Mat Mat Min Mat Sto Gar Distress Signals 5 | . . 3 . 1 1 . Communications Jammed . | . . . . . . . Distress Signals . | . . . . . . . Times Spotted 65 | . 5 17 14 19 2 8 Peak Tracking Total 14 | . 3 5 4 14 2 9 Tactical Retreats 3 | . . 2 1 . . . Traps | -11 -10 -9 -9 -8 -8 -8 ------- Run | Yrd Mat Mat Min Mat Sto Gar Traps Triggered 3 | . 2 . . 1 . . Indirectly . | . . . . . . . Trap Hack Attempts . | . . . . . . . Triggered . | . . . . . . . Disarmed 6 | . 6 . . . . . Reprogrammed . | . . . . . . . Reused . | . . . . . . . Traps Extracted . | . . . . . . . Installed . | . . . . . . . Triggered . | . . . . . . . Machines | -11 -10 -9 -9 -8 -8 -8 ---------- Run | Yrd Mat Mat Min Mat Sto Gar Machines Disabled 2 | . . 1 1 . . . Max in Single Turn 1 | . . 1 1 . . . Machines Repaired . | . . . . . . . Machines Dismantled . | . . . . . . . Machines Sabotaged . | . . . . . . . Overloaded Fab Kills . | . . . . . . . Hacking | -11 -10 -9 -9 -8 -8 -8 --------- Run | Yrd Mat Mat Min Mat Sto Gar Machines Accessed 7 | . 2 2 . 2 1 . Terminals 4 | . 1 1 . 2 . . Fabricators . | . . . . . . . Repair Stations . | . . . . . . . Recycling Units 1 | . 1 . . . . . Scanalyzers 1 | . . 1 . . . . Garrison Access 1 | . . . . . 1 . Total Hacks 24 | . 6 10 . 7 1 . Successful 18 | . 5 8 . 4 1 . Failed 6 | . 1 2 . 3 . . Catastrophic . | . . . . . . . Database Lockouts . | . . . . . . . Manual . | . . . . . . . Terminals 15 | . 5 3 . 7 . . Fabricators . | . . . . . . . Repair Stations . | . . . . . . . Recycling Units 1 | . 1 . . . . . Scanalyzers 7 | . . 7 . . . . Garrison Access 1 | . . . . . 1 . Terminal Hacks 11 | . 4 3 . 4 . . Record 5 | . 2 2 . 1 . . Prototype ID Bank 2 | . 1 . . 1 . . Emergency Access Points 2 | . . . . 2 . . Disarm Traps 1 | . 1 . . . . . Investigation Status 1 | . . 1 . . . . Fabricator Hacks . | . . . . . . . Repair Station Hacks . | . . . . . . . Recycling Unit Hacks 1 | . 1 . . . . . Recycle Component 1 | . 1 . . . . . Scanalyzer 5 | . . 5 . . . . Insert Component 1 | . . 1 . . . . Analyze 1 | . . 1 . . . . Retrieve Study 3 | . . 3 . . . . Garrison Access Hacks 1 | . . . . . 1 . Unlock Access 1 | . . . . . 1 . Unauthorized Hacks . | . . . . . . . Terminals . | . . . . . . . Fabricators . | . . . . . . . Repair Stations . | . . . . . . . Recycling Units . | . . . . . . . Scanalyzers . | . . . . . . . Garrison Access . | . . . . . . . Data Cores Recovered . | . . . . . . . Used . | . . . . . . . Hacking Detections 3 | . 1 1 . 1 . . Full Trace Events 2 | . 1 . . 1 . . Feedback Events . | . . . . . . . Feedback Blocked . | . . . . . . . Robot Schematics Acquired . | . . . . . . . Robots Built . | . . . . . . . Authchips . | . . . . . . . Time . | . . . . . . . Total Robot Build Rating . | . . . . . . . Part Schematics Acquired 1 | . . 1 . . . . Parts Built . | . . . . . . . Authchips . | . . . . . . . Time . | . . . . . . . Total Part Build Rating . | . . . . . . . Part Studies Acquired 3 | . . 3 . . . . Parts Repaired . | . . . . . . . Time . | . . . . . . . Parts Recycled 1 | . 1 . . . . . Recycled Matter . | . . . . . . . Retrieved Matter . | . . . . . . . Retrieved Components . | . . . . . . . Parts Scanalyzed 1 | . . 1 . . . . Part Schematics Acquired 1 | . . 1 . . . . Parts Damaged . | . . . . . . . Bothacking | -11 -10 -9 -9 -8 -8 -8 ------------ Run | Yrd Mat Mat Min Mat Sto Gar Used RIF Installer . | . . . . . . . Robots Hacked . | . . . . . . . Non-combat . | . . . . . . . Combat . | . . . . . . . Robot Hacks Applied . | . . . . . . . Relay Couplers Released . | . . . . . . . Fabnet Peak Effective % . | . . . . . . . Robots Rewired . | . . . . . . . Allies Hacked . | . . . . . . . Hacks Repelled . | . . . . . . . Allies | -11 -10 -9 -9 -8 -8 -8 -------- Run | Yrd Mat Mat Min Mat Sto Gar Total Allies . | . . . . . . . Largest Group . | . . . . . . . Highest-Rated Group . | . . . . . . . Highest-Rated Ally . | . . . . . . . Total Orders . | . . . . . . . Ally Attacks . | . . . . . . . Total Damage . | . . . . . . . Kills . | . . . . . . . Allies Corrupted . | . . . . . . . Allies Melted . | . . . . . . . Intel | -11 -10 -9 -9 -8 -8 -8 ------- Run | Yrd Mat Mat Min Mat Sto Gar Active Infowar (turns) 1717 | . 208 514 593 376 22 4 Optics 1129 | . . 164 593 372 . . Sensors 171 | . 171 . . . . . Structural 413 | . 37 350 . . 22 4 ECM 4 | . . . . 4 . . Robot Analysis Total . | . . . . . . . Derelict Logs Recovered . | . . . . . . . Drone Launches . | . . . . . . . Drone Recoveries . | . . . . . . . Exploration | -11 -10 -9 -9 -8 -8 -8 ------------- Run | Yrd Mat Mat Min Mat Sto Gar Turns Passed 1889 | 78 231 514 593 388 57 28 Spaces Moved 846 | 43 113 241 226 142 26 55 Core 84 | 1 . . . 2 26 55 Treads 683 | 42 113 241 226 61 . . Legs 79 | . . . . 79 . . Wheels . | . . . . . . . Hover . | . . . . . . . Flight . | . . . . . . . Fastest Speed 50 | 50 160 160 160 50 50 50 Average Speed 176 | 157 160 160 236 202 50 50 Slowest Speed 240 | 160 160 160 240 240 50 50 Overloaded Moves . | . . . . . . . Propulsion Burnouts . | . . . . . . . Robots Hopped . | . . . . . . . Potential Cave-ins . | . . . . . . . Cave-ins Triggered . | . . . . . . . Exploration Rate (%) 27 | 4 28 41 66 19 11 23 Regions Visited 6 Branch Regions 2 Pre-discovered Areas . | . . . . . . . Known Exits Taken 1 | . . . . . 1 . Unknown Exits Taken 5 | 1 1 1 1 1 . . Scrap Searched 3 | . . . 3 . . . Spaces Dug . | . . . . . . . Terrain Destroyed 22 | . . 7 10 5 . . Melee . | . . . . . . . Projectile . | . . . . . . . AOE 22 | . . 7 10 5 . . Terrain Rammed . | . . . . . . . Walls Destroyed . | . . . . . . . Machines Disabled . | . . . . . . . Actions | -11 -10 -9 -9 -8 -8 -8 --------- Run | Yrd Mat Mat Min Mat Sto Gar Total 1060 | 50 136 308 252 190 69 55 Wait 52 | . 1 11 . . 40 . Move 840 | 42 112 240 225 141 25 55 Hop . | . . . . . . . Pick Up 25 | 2 5 11 4 3 . . Fast Attach 11 | 6 1 . . 4 . . Attach 23 | . 2 6 4 8 3 . Detach 1 | . . . . 1 . . Swap 6 | . . 5 1 . . . Drop 5 | . . 4 . 1 . . Fire 82 | . 13 29 16 24 . . Melee . | . . . . . . . Ram 1 | . . . . . 1 . Kick 6 | . . . . 6 . . Crush 8 | . 2 2 2 2 . . Escape Stasis . | . . . . . . . Rewire . | . . . . . . . Trap . | . . . . . . . Miscellaneous . | . . . . . . . Route ------- -11/Scrapyard -10/Materials -9/Materials -9/Mines -8/Materials -8/Storage -8/Garrison History --------- Turn | Location | Event 22 | -11/Scrapyard | Discovered new exit (range 15) 79 | -11/Scrapyard | Entered Materials 291 | -10/Materials | Discovered new exit (range 13) 310 | -10/Materials | Entered another Materials area 310 | -9/Materials | Evolved 2 slots: Power x1, Weapon x1 598 | -9/Materials | Build established: Skirmisher 810 | -9/Materials | Discovered new exit (range 6) 824 | -9/Materials | Entered Mines 1150 | -9/Mines | Build established: Mutant 1372 | -9/Mines | Discovered new exit (range 13) 1405 | -9/Mines | Destroyed 7 combat bots 1417 | -9/Mines | Entered Materials 1417 | -8/Materials | Evolved 2 slots: Utility x1, Weapon x1 1569 | -8/Materials | Lost 4 parts (1p3w) 1763 | -8/Materials | Discovered new exit (range 17) 1801 | -8/Materials | Core integrity fell below 50% 1805 | -8/Materials | Core integrity fell below 20% 1805 | -8/Materials | Entered Storage 1834 | -8/Storage | Lost 13 parts (1p2n5u5w) 1862 | -8/Storage | Identified exit to Garrison 1862 | -8/Storage | Entered Garrison 1884 | -8/Garrison | Triggered checkpoint 1884 | -8/Garrison | Triggered checkpoint 1890 | -8/Garrison | Destroyed by Y-45 Defender with Beam Rifle Last Messages --------------- K-01 Serf collects debris. LOCATION=UNKNOWN GOAL=ESCAPE ,C WKD9&MIJZQ,ZSK72RMUTYX# System corrupted: Weight Redist. System fused. W-25 Informer sends out distress signal. Slammed into W-25 Informer. Connecting with Garrison Access... Current location identified: Storage >>Unlock Access door unlocked. EXIT=UNLOCKED: GARRISON LOCATION=GARRISON GOAL=ESCAPE Beams of light sweep through the air. An alarm sounds. System corrupted: Shield Generator rejected. Beams of light sweep through the air. An alarm sounds. Penetrated by Slug. Map ----- +----------------------------------------------------+ | ?????????????????????????????????????????????????? | | ?????????????????????????????????????????????????? | | ?????????????????????????????????????????????????? | | ?????????????????????????????????????????????????? | | ?????????????????????????????????????????????????? | | ?????????????????????????????????????????????????? | | ???????????????????????????????? ???????????????? | | ???????????????????????????????? ????????? ?????? | | ???????????????????????????????? ???????? #????? | | ???????????????????????????????# #??????? #????? | | ???????????????????????????????# #??????? #????? | | ???????????????????????????????# #?###### #????? | | ???????????????????????????????# #? ## #????? | | ??????????????????????????????## ## ## ##???? | | ??????????????????????????????# #???? | | ??????????????????????????????# #???? | | ??????????????????????????????# #???? | | ??????????????????????????????# ## ## #???? | | ??????????????????????????????# ## ## #???? | | ??????????????????????????????" "???? | | ??????????????????????????????" "???? | | ??????????????????????????????" "???? | | ??????????????????????????????" ! "???? | | ??????????????????????????????# ## ## #???? | | ????????????????????########### ## ## ##### | | ????????????????????# @ | | ????????????????????# | | ????????????????????# ######## Y Y g ##### | | ????????????????????# ????????###### ## ##???? | | ????????????????????#??????????????# ## T#???? | | ???????????????????????????????????####### ##???? | | ?????????????????????????????????????????# #????? | | ?????????????????????????????????????????# +????? | | ?????????????????????????????????????????# #????? | | ?????????????????????????????????????????# #????? | | ?????????????????????????????????????????# ###### | | ?????????????????????????????????????????# | | ?????????????????????????????????????????# | | ?????????????????????????????????????????####### # | | ???????????????????????????????????????????????#?? | | ?????????????????????????????????????????????????? | | ?????????????????????????????????????????????????? | | ?????????????????????????????????????????????????? | | ?????????????????????????????????????????????????? | | ?????????????????????????????????????????????????? | | ?????????????????????????????????????????????????? | | ?????????????????????????????????????????????????? | | ?????????????????????????????????????????????????? | | ?????????????????????????????????????????????????? | | ?????????????????????????????????????????????????? | +----------------------------------------------------+ Best States ------------- Heat Dissipation 31 Energy Generation 21 Energy Capacity 310 Matter Stores 300 Matter Capacity 300 Sight Range 18 Robot Scan Range 14 Terrain Scan Density 10 Additional Mass Support 6 Armor Coverage 150 Propulsion Shielding 66 Evasion (%) 50 Recoil Reduction 2 Item Schematics ----------------- Hrd. Light Armor Plating | -9/Materials | Scanalyzed Robot Schematics ------------------ None Fabricated ------------ Nothing Repaired ---------- Nothing Studied --------- Lgt. Assault Rifle | -9/Materials | Hacked Particle Cannon | -9/Materials | Hacked Ion Engine | -9/Materials | Hacked Alien Tech Used ----------------- None Achievements -------------- None Challenges ------------ None Game ------ Seed FlightLaunchDisplacer Manual? 0 Play Time 00:27:50 Cumulative 32.0 hours Start 2026.08.17 @ 05:58:39 End 2026.08.18 @ 05:24:05 Sessions 3 Manual Loads 0 Difficulty Rogue Special Mode None Game No. 61 Rogue 61 Adventurer 0 Explorer 0 Win Type - Total 0 Types 0/0/0/0/0/0/0/0/0/0 Lore% 13 Gallery% 23 Achievement% 15 Wizard Run 0 Options --------- Layout 1 ASCII 0 Keyboard 0 Movement Numpad Keybinds 0 Fullscreen 1 Font 32/SmallcapsGlow Map View 50x35 Zoom Use 0% Tactical HUD 0 Map Filters NONE Filters NONE Steam 1 RUN: dc8588f3-18e7-42c0-ae0e-98efa3cf0dcb